fUSD/lending_fUSD_20250702
["ID","MTS","AMOUNT","RATE_DAILY","PERIOD"]
[369078375,1751459447378,-1159.67,0.00032876,12]
[369078376,1751459447387,-460.0,0.00032876,12]
[369078377,1751459447396,-321.18452723,0.00032876,12]
[369078378,1751459447407,-490.0,0.00032876,12]
[369078379,1751459447416,-460.0,0.00032876,12]
[369078380,1751459447426,-1731.47,0.00032876,12]
[369078381,1751459447435,-460.0,0.00032876,12]
[369078382,1751459447445,-508.94,0.00032876,12]
[369078383,1751459447455,-460.0,0.00032876,12]
[369078384,1751459447465,-460.0,0.00032876,12]
[369078385,1751459447474,-759.97,0.00032876,12]
[369078386,1751459447484,-492.20160503,0.00032876,12]
[369078387,1751459447494,-1214.29,0.00032876,12]
[369078388,1751459447504,-460.0,0.00032876,12]
[369078389,1751459447515,-460.0,0.00032876,12]
[369078390,1751459447525,-460.0,0.00032876,12]
[369078391,1751459447535,-490.0,0.00032876,12]
[369078392,1751459447545,-1405.32,0.00032876,12]
[369078393,1751459447556,-934.59,0.00032876,12]
[369078394,1751459447566,-460.0,0.00032876,12]
[369078395,1751459447575,-1382.67,0.00032876,12]
[369078396,1751459447585,-460.0,0.00032876,12]
[369078397,1751459447595,-460.0,0.00032876,12]
[369078398,1751459447607,-460.0,0.00032876,12]
[369078399,1751459447617,-490.0,0.00032876,12]
[369078400,1751459447626,-460.0,0.00032876,12]
[369078401,1751459447636,-1451.8,0.00032876,12]
[369078402,1751459447646,-611.29,0.00032876,12]
[369078403,1751459447659,-314.05527431,0.00032876,12]
[369078404,1751459447669,-460.0,0.00032876,12]
[369078405,1751459447678,-490.0,0.00032876,10]
[369078406,1751459447688,-15927.65,0.00032876,12]
[369078407,1751459447697,-460.0,0.00032876,12]
[369078408,1751459447708,-460.0,0.00032876,12]
[369078409,1751459447717,-218.09034144,0.00032876,12]
[369078410,1751459447728,-463.64,0.00032876,12]
[369078411,1751459447737,-527.48,0.00032876,12]
[369078412,1751459447747,-460.0,0.00032876,12]
[369078413,1751459447756,-460.0,0.00032876,12]
[369078414,1751459447765,-1289.18,0.00032876,12]
[369078415,1751459447775,-460.0,0.00032876,12]
[369078416,1751459447785,-490.0,0.00032876,12]
[369078417,1751459447794,-460.0,0.00032876,12]
[369078418,1751459447804,-460.0,0.00032876,12]
[369078419,1751459447813,-460.0,0.00032876,12]
[369078420,1751459447822,-460.0,0.00032876,12]
[369078421,1751459447831,-460.0,0.00032876,12]
[369078422,1751459447840,-460.0,0.00032876,12]
[369078423,1751459447849,-467.94,0.00032876,12]
[369078424,1751459447858,-1077.32,0.00032876,12]
[369078425,1751459447867,-605.97893446,0.00032876,12]
[369078426,1751459447876,-490.0,0.00032876,12]
[369078427,1751459447886,-1409.87,0.00032876,12]
[369078428,1751459447895,-1091.52,0.00032876,12]
[369078429,1751459447904,-460.0,0.00032876,12]
[369078430,1751459447913,-460.0,0.00032876,12]
[369078431,1751459447922,-165.46705004,0.00032876,12]
[369078432,1751459447932,-460.0,0.00032876,12]
[369078433,1751459447941,-460.0,0.00032876,12]
[369078434,1751459447951,-460.0,0.00032876,12]
[369078435,1751459447960,-2082.02,0.00032876,12]
[369078436,1751459447969,-460.0,0.00032876,12]
[369078437,1751459447978,-460.0,0.00032876,12]
[369078438,1751459447987,-2831.77,0.00032876,12]
[369078439,1751459447996,-1237.45,0.00032876,12]
[369078440,1751459448005,-1376.62,0.00032876,12]
[369078441,1751459448015,-460.0,0.00032876,12]
[369078442,1751459448024,-490.0,0.00032876,12]
[369078443,1751459448034,-460.0,0.00032876,12]
[369078444,1751459448043,-575.01,0.00032876,12]
[369078445,1751459448053,-460.0,0.00032876,12]
[369078446,1751459448062,-1565.03,0.00032876,12]
[369078447,1751459448072,-1414.39,0.00032876,12]
[369078448,1751459448081,-460.0,0.00032876,12]
[369078449,1751459448091,-2281.58,0.00032876,12]
[369078450,1751459448102,-460.0,0.00032876,12]
[369078451,1751459448111,-482.4689914,0.00032876,12]
[369078452,1751459448121,-460.0,0.00032876,12]
[369078453,1751459448131,-1729.89,0.00032876,12]
[369078454,1751459448141,-1175.78,0.00032876,12]
[369078455,1751459448150,-460.0,0.00032876,12]
[369078456,1751459448160,-460.0,0.00032876,12]
[369078457,1751459448170,-460.0,0.00032876,12]
[369078458,1751459448179,-460.0,0.00032876,12]
[369078459,1751459448188,-460.0,0.00032876,12]
[369078460,1751459448198,-460.0,0.00032876,12]
[369078461,1751459448208,-460.0,0.00032876,12]
[369078462,1751459448218,-460.0,0.00032876,12]
[369078463,1751459448227,-1149.1,0.00032876,12]
[369078464,1751459448237,-460.0,0.00032876,12]
[369078465,1751459448247,-492.5867393,0.00032876,12]
[369078466,1751459448257,-490.0,0.00032876,12]
[369078467,1751459448267,-491.57453093,0.00032876,7]
[369078468,1751459448277,-460.0,0.00032876,12]
[369078469,1751459448287,-3665.44,0.00032876,12]
[369078470,1751459448297,-460.0,0.00032876,12]
[369078471,1751459448307,-460.0,0.00032876,12]
[369078472,1751459448316,-1468.62,0.00032876,12]
[369078473,1751459448327,-490.0,0.00032876,12]
[369078474,1751459448336,-460.0,0.00032876,12]
[369078475,1751459448346,-460.55,0.00032876,12]
[369078476,1751459448356,-490.0,0.00032876,12]
[369078477,1751459448365,-460.0,0.00032876,12]
[369078478,1751459448375,-460.0,0.00032876,12]
[369078479,1751459448385,-460.0,0.00032876,12]
[369078480,1751459448395,-2230.31,0.00032876,12]
[369078481,1751459448404,-460.0,0.00032876,12]
[369078482,1751459448414,-490.0,0.00032876,12]
[369078483,1751459448423,-658.5,0.00032876,12]
[369078484,1751459448433,-460.0,0.00032876,12]
[369078485,1751459448442,-490.0,0.00032876,12]
[369078486,1751459448452,-460.0,0.00032876,12]
[369078487,1751459448462,-1002.35,0.00032876,12]
[369078488,1751459448471,-696.22,0.00032876,12]
[369078489,1751459448481,-490.0,0.00032876,12]
[369078490,1751459448490,-490.0,0.00032876,12]
[369078491,1751459448500,-561.24011988,0.00032876,12]
[369078492,1751459448510,-460.0,0.00032876,12]
[369078493,1751459448520,-460.0,0.00032876,12]
[369078494,1751459448529,-460.0,0.00032876,12]
[369078495,1751459448539,-460.0,0.00032876,12]
[369078496,1751459448550,-490.0,0.00032876,12]
[369078497,1751459448562,-558.5,0.00032876,12]
[369078498,1751459448571,-478.41,0.00032876,12]
[369078499,1751459448581,-641.74,0.00032876,12]
[369078500,1751459448591,-460.0,0.00032876,12]
[369078501,1751459448603,-1924.05,0.00032876,12]
[369078502,1751459448613,-460.0,0.00032876,12]
[369078503,1751459448623,-2332.84,0.00032876,12]
[369078504,1751459448633,-490.0,0.00032876,12]
[369078505,1751459448644,-811.99,0.00032876,12]
[369078506,1751459448654,-460.0,0.00032876,12]
[369078507,1751459448663,-577.04213907,0.00032876,12]
[369078508,1751459448673,-460.0,0.00032876,12]
[369078509,1751459448682,-2927.22,0.00032876,12]
[369078510,1751459448692,-490.0,0.00032876,12]
[369078511,1751459448701,-490.0,0.00032876,12]
[369078512,1751459448710,-490.0,0.00032876,12]
[369078513,1751459448720,-493.7238577,0.00032876,12]
[369078514,1751459448730,-509.59,0.00032876,12]
[369078515,1751459448744,-490.0,0.00032876,12]
[369078516,1751459448754,-1502.0,0.00032876,12]
[369078517,1751459448764,-460.0,0.00032876,12]
[369078518,1751459448774,-460.0,0.00032876,12]
[369078519,1751459448784,-1797.17,0.00032876,12]
[369078520,1751459448794,-986.46,0.00032876,12]
[369078521,1751459448804,-4132.11,0.00032876,12]
[369078522,1751459448814,-666.06,0.00032876,12]
[369078523,1751459448825,-490.0,0.00032876,12]
[369078524,1751459448835,-460.0,0.00032876,12]
[369078525,1751459448845,-651.92,0.00032876,12]
[369078526,1751459448856,-460.0,0.00032876,12]
[369078527,1751459448866,-490.0,0.00032876,12]
[369078528,1751459448876,-1947.37,0.00032876,12]
[369078529,1751459448886,-460.0,0.00032876,12]
[369078530,1751459448895,-460.0,0.00032876,12]
[369078531,1751459448906,-1636.62,0.00032876,12]
[369078532,1751459448915,-460.0,0.00032876,12]
[369078533,1751459448924,-460.0,0.00032876,12]
[369078534,1751459448934,-604.80991053,0.00032876,12]
[369078535,1751459448943,-460.0,0.00032876,12]
[369078536,1751459448953,-511.49,0.00032876,12]
[369078537,1751459448963,-423.62029055,0.00032876,12]
[369078538,1751459448972,-1363.38,0.00032876,12]
[369078539,1751459448981,-460.0,0.00032876,12]
[369078540,1751459448991,-1286.19,0.00032876,12]
[369078541,1751459449000,-460.0,0.00032876,12]
[369078542,1751459449009,-491.53892638,0.00032876,12]
[369078543,1751459449019,-1449.82,0.00032876,12]
[369078544,1751459449028,-1403.7,0.00032876,12]
[369078545,1751459449038,-2589.73,0.00032876,12]
[369078546,1751459449048,-460.0,0.00032876,12]
[369078547,1751459449057,-460.0,0.00032876,12]
[369078548,1751459449067,-460.0,0.00032876,12]
[369078549,1751459449077,-460.0,0.00032876,12]
[369078550,1751459449087,-460.0,0.00032876,12]
[369078551,1751459449097,-460.0,0.00032876,12]
[369078552,1751459449106,-973.03,0.00032876,12]
[369078553,1751459449116,-460.0,0.00032876,12]
[369078554,1751459449125,-1309.23,0.00032876,12]
[369078555,1751459449135,-460.0,0.00032876,12]
[369078556,1751459449144,-460.0,0.00032876,12]
[369078557,1751459449154,-2613.27,0.00032876,12]
[369078558,1751459449164,-2685.38,0.00032876,12]
[369078559,1751459449174,-460.0,0.00032876,12]
[369078560,1751459449183,-490.0,0.00032876,12]
[369078561,1751459449193,-688.28,0.00032876,12]
[369078562,1751459449202,-862.51,0.00032876,12]
[369078563,1751459449212,-351.21427641,0.00032876,12]
[369078564,1751459449221,-460.0,0.00032876,12]
[369078565,1751459449230,-460.0,0.00032876,12]
[369078566,1751459449240,-460.0,0.00032876,12]
[369078567,1751459449250,-460.0,0.00032876,12]
[369078568,1751459449260,-460.0,0.00032876,12]
[369078569,1751459449269,-1131.85,0.00032876,12]
[369078570,1751459449279,-915.96,0.00032876,12]
[369078571,1751459449289,-460.0,0.00032876,12]
[369078572,1751459449299,-460.0,0.00032876,12]
[369078573,1751459449308,-460.0,0.00032876,12]
[369078574,1751459449318,-496.80134305,0.00032876,12]
[369078575,1751459449333,-3235.84,0.00032876,12]
[369078576,1751459449343,-460.0,0.00032876,12]
[369078577,1751459449353,-641.3,0.00032876,12]
[369078578,1751459449362,-490.0,0.00032876,12]
[369078579,1751459449372,-2890.66,0.00032876,12]
[369078580,1751459449381,-722.87,0.00032876,12]
[369078581,1751459449390,-490.70822202,0.00032876,12]
[369078582,1751459449400,-497.6,0.00032876,12]
[369078583,1751459449414,-490.0,0.00032876,12]
[369078584,1751459449427,-493.42653996,0.00032876,12]
[369078585,1751459449437,-460.0,0.00032876,12]
[369078586,1751459449447,-460.0,0.00032876,12]
[369078587,1751459449458,-460.0,0.00032876,12]
[369078588,1751459449468,-2204.26,0.00032876,12]
[369078589,1751459449477,-460.0,0.00032876,12]
[369078590,1751459449487,-1554.5,0.00032876,12]
[369078591,1751459449497,-951.71,0.00032876,12]
[369078592,1751459449507,-5378.04,0.00032876,12]
[369078593,1751459449517,-3904.35,0.00032876,12]
[369078594,1751459449526,-490.0,0.00032876,12]
[369078595,1751459449536,-460.0,0.00032876,12]
[369078596,1751459449546,-490.0,0.00032876,12]
[369078597,1751459449560,-490.0,0.00032876,12]
[369078598,1751459449570,-1436.23,0.00032876,12]
[369078599,1751459449767,-840.95,0.00032876,12]
[369078600,1751459449777,-460.0,0.00032876,12]
[369078601,1751459449789,-889.64,0.00032876,12]
[369078602,1751459449799,-1854.08,0.00032876,12]
[369078603,1751459449812,-460.0,0.00032876,12]
[369078604,1751459449821,-1480.19,0.00032876,12]
[369078605,1751459449831,-460.0,0.00032876,12]
[369078606,1751459449842,-537.28,0.00032876,12]
[369078607,1751459449851,-473.98,0.00032876,12]
[369078608,1751459449861,-460.0,0.00032876,12]
[369078609,1751459449870,-490.0,0.00032876,12]
[369078610,1751459449880,-490.0,0.00032876,12]
[369078611,1751459449890,-2139.68,0.00032876,12]
[369078612,1751459449899,-1884.13,0.00032876,12]
[369078613,1751459449908,-7988.88,0.00032876,12]
[369078614,1751459449919,-460.0,0.00032876,12]
[369078615,1751459449928,-460.0,0.00032876,12]
[369078616,1751459449937,-909.23,0.00032876,12]
[369078617,1751459449947,-491.88294325,0.00032876,12]
[369078618,1751459449956,-460.0,0.00032876,12]
[369078619,1751459449966,-460.0,0.00032876,12]
[369078620,1751459449975,-1883.73,0.00032876,12]
[369078621,1751459449985,-1467.16,0.00032876,12]
[369078622,1751459449994,-490.0,0.00032876,12]
[369078623,1751459450005,-1488.75,0.00032876,12]
[369078624,1751459450015,-2862.36,0.00032876,12]
[369078625,1751459450026,-527.36230943,0.00032876,12]
[369078626,1751459450036,-8510.95,0.00032876,12]
[369078627,1751459450045,-460.0,0.00032876,12]
[369078628,1751459450055,-738.89,0.00032876,12]
[369078629,1751459450064,-1275.26,0.00032876,12]
[369078630,1751459450074,-503.424516,0.00032876,12]
[369078631,1751459450083,-1522.88,0.00032876,12]
[369078632,1751459450093,-1212.9,0.00032876,12]
[369078633,1751459450104,-501.13130842,0.00032876,12]
[369078634,1751459450114,-2455.06,0.00032876,12]
[369078635,1751459450124,-2227.15,0.00032876,12]
[369078636,1751459450134,-2908.57,0.00032876,12]
[369078637,1751459450144,-490.0,0.00032876,12]
[369078638,1751459450154,-460.0,0.00032876,12]
[369078639,1751459450163,-501.57656252,0.00032876,12]
[369078640,1751459450172,-1770.3,0.00032876,12]
[369078641,1751459450182,-460.0,0.00032876,12]
[369078642,1751459450191,-490.0,0.00032876,12]
[369078643,1751459450201,-490.0,0.00032876,12]
[369078644,1751459450211,-1372.63,0.00032876,12]
[369078645,1751459450220,-460.0,0.00032876,12]
[369078646,1751459450230,-460.0,0.00032876,12]
[369078647,1751459450239,-460.0,0.00032876,12]
[369078648,1751459450248,-460.0,0.00032876,12]
[369078649,1751459450257,-460.0,0.00032876,12]
[369078650,1751459450267,-460.0,0.00032876,12]
[369078651,1751459450275,-460.0,0.00032876,12]
[369078652,1751459450285,-460.0,0.00032876,12]
[369078653,1751459450295,-460.0,0.00032876,12]
[369078654,1751459450305,-460.0,0.00032876,12]
[369078655,1751459450314,-460.0,0.00032876,12]
[369078656,1751459450323,-460.0,0.00032876,12]
[369078657,1751459450334,-2181.7,0.00032876,12]
[369078658,1751459450344,-1500.0,0.00032876,60]
[369078659,1751459450355,-460.0,0.00032876,12]
[369078660,1751459450364,-593.14,0.00032876,12]
[369078661,1751459450374,-460.0,0.00032876,12]
[369078662,1751459450383,-460.0,0.00032876,12]
[369078663,1751459450392,-460.0,0.00032876,12]
[369078664,1751459450401,-460.0,0.00032876,12]
[369078665,1751459450410,-460.0,0.00032876,12]
[369078666,1751459450420,-748.35,0.00032876,12]
[369078667,1751459450429,-1809.21,0.00032876,12]
[369078668,1751459450438,-513.23,0.00032876,12]
[369078669,1751459450447,-1974.62,0.00032876,12]
[369078670,1751459450456,-460.0,0.00032876,12]
[369078671,1751459450467,-2940.61,0.00032876,12]
[369078672,1751459450476,-460.0,0.00032876,12]
[369078673,1751459450485,-491.62860409,0.00032876,12]
[369078674,1751459450495,-14337.64,0.00032876,12]
[369078675,1751459450504,-460.0,0.00032876,12]
[369078676,1751459450513,-490.0,0.00032876,12]
[369078677,1751459450523,-1464.54,0.00032876,12]
[369078678,1751459450533,-460.0,0.00032876,12]
[369078679,1751459450542,-1918.91,0.00032876,12]
[369078680,1751459450552,-1455.47,0.00032876,12]
[369078681,1751459450564,-1297.63,0.00032876,12]
[369078682,1751459450573,-613.06,0.00032876,12]
[369078683,1751459450582,-460.0,0.00032876,12]
[369078684,1751459450592,-460.0,0.00032876,12]
[369078685,1751459450603,-460.0,0.00032876,12]
[369078686,1751459450612,-460.0,0.00032876,12]
[369078687,1751459450622,-460.0,0.00032876,12]
[369078688,1751459450632,-460.0,0.00032876,12]
[369078689,1751459450641,-1251.09,0.00032876,12]
[369078690,1751459450650,-334.09,0.00032876,12]
[369078691,1751459450660,-1115.56,0.00032876,12]
[369078692,1751459450669,-490.0,0.00032876,12]
[369078693,1751459450679,-1622.65,0.00032876,12]
[369078694,1751459450688,-918.87,0.00032876,12]
[369078695,1751459450697,-460.0,0.00032876,12]
[369078696,1751459450707,-610.79,0.00032876,12]
[369078697,1751459450716,-460.0,0.00032876,12]
[369078698,1751459450726,-490.0,0.00032876,12]
[369078699,1751459450735,-1558.04,0.00032876,12]
[369078700,1751459450744,-460.0,0.00032876,12]
[369078701,1751459450753,-1532.03,0.00032876,12]
[369078702,1751459450762,-460.0,0.00032876,12]
[369078703,1751459450771,-927.78,0.00032876,12]
[369078704,1751459450780,-1120.2,0.00032876,12]
[369078705,1751459450789,-460.0,0.00032876,7]
[369078706,1751459450798,-490.0,0.00032876,12]
[369078707,1751459450807,-5018.91,0.00032876,12]
[369078708,1751459450817,-460.0,0.00032876,12]
[369078709,1751459450826,-460.0,0.00032876,12]
[369078710,1751459450836,-492.46967206,0.00032876,12]
[369078711,1751459450846,-1192.83,0.00032876,12]
[369078712,1751459450859,-460.0,0.00032876,12]
[369078713,1751459450869,-460.0,0.00032876,12]
[369078714,1751459450879,-614.18,0.00032876,12]
[369078715,1751459450888,-1246.02,0.00032876,12]
[369078716,1751459450897,-17410.03,0.00032876,12]
[369078717,1751459450906,-490.0,0.00032876,12]
[369078718,1751459450915,-3890.23,0.00032876,12]
[369078719,1751459450925,-490.0,0.00032876,12]
[369078720,1751459450934,-549.24,0.00032876,12]
[369078721,1751459450943,-1561.43,0.00032876,12]
[369078722,1751459450952,-460.0,0.00032876,12]
[369078723,1751459450962,-1114.96,0.00032876,12]
[369078724,1751459450971,-621.51,0.00032876,12]
[369078725,1751459450980,-491.84303642,0.00032876,12]
[369078726,1751459450990,-3281.69,0.00032876,12]
[369078727,1751459450999,-491.06816262,0.00032876,12]
[369078728,1751459451009,-460.0,0.00032876,12]
[369078729,1751459451018,-490.0,0.00032876,12]
[369078730,1751459451027,-14179.41,0.00032876,12]
[369078731,1751459451037,-460.0,0.00032876,12]
[369078732,1751459451046,-460.0,0.00032876,12]
[369078733,1751459451055,-612.33,0.00032876,12]
[369078734,1751459451064,-1685.4,0.00032876,12]
[369078735,1751459451074,-460.0,0.00032876,12]
[369078736,1751459451083,-970.79,0.00032876,12]
[369078737,1751459451092,-1476.99,0.00032876,12]
[369078738,1751459451101,-1041.13,0.00032876,12]
[369078739,1751459451111,-460.0,0.00032876,12]
[369078740,1751459451120,-10032.7,0.00032876,12]
[369078741,1751459451130,-894.84,0.00032876,12]
[369078742,1751459451139,-2104.41,0.00032876,12]
[369078743,1751459451149,-461.61,0.00032876,12]
[369078744,1751459451158,-460.0,0.00032876,12]
[369078745,1751459451167,-484.34,0.00032876,12]
[369078746,1751459451176,-4805.54,0.00032876,12]
[369078747,1751459451185,-460.0,0.00032876,12]
[369078748,1751459451194,-460.0,0.00032876,12]
[369078749,1751459451204,-846.63,0.00032876,12]
[369078750,1751459451213,-460.0,0.00032876,12]
[369078751,1751459451222,-2292.38,0.00032876,12]
[369078752,1751459451231,-460.0,0.00032876,12]
[369078753,1751459451241,-3633.33,0.00032876,12]
[369078754,1751459451250,-1902.3,0.00032876,12]
[369078755,1751459451260,-2351.4,0.00032876,12]
[369078756,1751459451269,-460.0,0.00032876,12]
[369078757,1751459451279,-491.41285961,0.00032876,12]
[369078758,1751459451289,-1105.33,0.00032876,12]
[369078759,1751459451298,-1628.23,0.00032876,12]
[369078760,1751459451307,-1174.03,0.00032876,12]
[369078761,1751459451316,-2289.32,0.00032876,12]
[369078762,1751459451325,-460.0,0.00032876,12]
[369078763,1751459451334,-460.0,0.00032876,12]
[369078764,1751459451343,-460.0,0.00032876,12]
[369078765,1751459451353,-898.36,0.00032876,12]
[369078766,1751459451362,-490.0,0.00032876,12]
[369078767,1751459451371,-1484.33,0.00032876,12]
[369078768,1751459451381,-1516.72,0.00032876,12]
[369078769,1751459451390,-1404.78,0.00032876,12]
[369078770,1751459451400,-460.0,0.00032876,12]
[369078771,1751459451409,-460.0,0.00032876,12]
[369078772,1751459451419,-2002.08,0.00032876,12]
[369078773,1751459451428,-780.1,0.00032876,12]
[369078774,1751459451437,-2777.15,0.00032876,12]
[369078775,1751459451447,-460.0,0.00032876,12]
[369078776,1751459451456,-460.0,0.00032876,12]
[369078777,1751459451465,-1136.06,0.00032876,12]
[369078778,1751459451475,-460.0,0.00032876,12]
[369078779,1751459451484,-460.0,0.00032876,12]
[369078780,1751459451494,-460.0,0.00032876,12]
[369078781,1751459451503,-2409.68,0.00032876,12]
[369078782,1751459451512,-460.0,0.00032876,12]
[369078783,1751459451522,-1446.68,0.00032876,12]
[369078784,1751459451532,-1441.55,0.00032876,12]
[369078785,1751459451541,-490.0,0.00032876,12]
[369078786,1751459451551,-460.0,0.00032876,12]
[369078787,1751459451564,-460.0,0.00032876,12]
[369078788,1751459451573,-460.0,0.00032876,12]
[369078789,1751459451583,-1085.6,0.00032876,12]
[369078790,1751459451592,-409.42085186,0.00032876,12]
[369078791,1751459451602,-460.0,0.00032876,12]
[369078792,1751459451611,-460.0,0.00032876,12]
[369078793,1751459451621,-460.0,0.00032876,12]
[369078794,1751459451632,-490.0,0.00032876,12]
[369078795,1751459451641,-460.0,0.00032876,12]
[369078796,1751459451650,-460.0,0.00032876,12]
[369078797,1751459451659,-1038.63,0.00032876,12]
[369078798,1751459451669,-460.0,0.00032876,12]
[369078799,1751459451679,-460.0,0.00032876,12]
[369078800,1751459451688,-1000.0,0.00032876,12]
[369078801,1751459451697,-1564.35,0.00032876,12]
[369078802,1751459451706,-460.0,0.00032876,12]
[369078803,1751459451715,-460.0,0.00032876,12]
[369078804,1751459451726,-1549.15,0.00032876,12]
[369078805,1751459451735,-460.0,0.00032876,12]
[369078806,1751459451744,-570.5,0.00032876,12]
[369078807,1751459451753,-1541.22,0.00032876,12]
[369078808,1751459451763,-460.0,0.00032876,12]
[369078809,1751459451772,-2696.91,0.00032876,12]
[369078810,1751459451784,-460.0,0.00032876,12]
[369078811,1751459451793,-460.0,0.00032876,12]
[369078812,1751459451803,-460.0,0.00032876,12]
[369078813,1751459451811,-460.0,0.00032876,12]
[369078814,1751459451821,-460.0,0.00032876,12]
[369078815,1751459451830,-460.0,0.00032876,12]
[369078816,1751459451839,-554.93,0.00032876,12]
[369078817,1751459451848,-460.0,0.00032876,12]
[369078818,1751459451858,-460.0,0.00032876,12]
[369078819,1751459451867,-460.0,0.00032876,12]
[369078820,1751459451876,-460.0,0.00032876,12]
[369078821,1751459451885,-1524.19,0.00032876,12]
[369078822,1751459451895,-3776.35,0.00032876,12]
[369078823,1751459451903,-1124.72,0.00032876,12]
[369078824,1751459451912,-1122.34,0.00032876,12]
[369078825,1751459451921,-776.12,0.00032876,12]
[369078826,1751459451931,-460.0,0.00032876,12]
[369078827,1751459451942,-527.45,0.00032876,12]
[369078828,1751459451951,-491.37292315,0.00032876,12]
[369078829,1751459451960,-490.0,0.00032876,12]
[369078830,1751459451969,-1353.7,0.00032876,12]
[369078831,1751459451978,-460.0,0.00032876,12]
[369078832,1751459451987,-490.0,0.00032876,12]
[369078833,1751459451996,-495.41768834,0.00032876,12]
[369078834,1751459452005,-1285.53,0.00032876,12]
[369078835,1751459452014,-491.52465195,0.00032876,12]
[369078836,1751459452023,-490.0,0.00032876,12]
[369078837,1751459452032,-1450.37,0.00032876,12]
[369078838,1751459452041,-460.0,0.00032876,12]
[369078839,1751459452050,-2626.14,0.00032876,12]
[369078840,1751459452061,-460.0,0.00032876,12]
[369078841,1751459452071,-460.0,0.00032876,12]
[369078842,1751459452080,-460.0,0.00032876,12]
[369078843,1751459452090,-514.45634747,0.00032876,12]
[369078844,1751459452099,-5850.52,0.00032876,12]
[369078845,1751459452109,-888.96,0.00032876,12]
[369078846,1751459452119,-485.37,0.00032876,12]
[369078847,1751459452128,-460.0,0.00032876,12]
[369078848,1751459452137,-460.0,0.00032876,12]
[369078849,1751459452147,-1110.71,0.00032876,12]
[369078850,1751459452156,-2147.17,0.00032876,12]
[369078851,1751459452166,-460.0,0.00032876,12]
[369078852,1751459452174,-490.0,0.00032876,12]
[369078853,1751459452183,-460.0,0.00032876,12]
[369078854,1751459452193,-1092.71,0.00032876,12]
[369078855,1751459452202,-6818.28,0.00032876,12]
[369078856,1751459452211,-953.08,0.00032876,12]
[369078857,1751459452220,-2812.45,0.00032876,12]
[369078858,1751459452230,-460.0,0.00032876,12]
[369078859,1751459452239,-460.0,0.00032876,12]
[369078860,1751459452248,-118951.71,0.00032876,12]
[369078861,1751459452257,-996.72,0.00032876,12]
[369078862,1751459452267,-832.7,0.00032876,12]
[369078863,1751459452275,-460.0,0.00032876,12]
[369078864,1751459452285,-490.0,0.00032876,12]
[369078865,1751459452295,-460.0,0.00032876,12]
[369078866,1751459452305,-460.0,0.00032876,12]
[369078867,1751459452315,-1623.92,0.00032876,12]
[369078868,1751459452325,-548.7,0.00032876,12]
[369078869,1751459452334,-460.0,0.00032876,12]
[369078870,1751459452351,-1985.92,0.00032876,12]
[369078871,1751459452361,-996.74,0.00032876,12]
[369078872,1751459452370,-490.0,0.00032876,12]
[369078873,1751459452379,-490.0,0.00032876,12]
[369078874,1751459452390,-460.0,0.00032876,12]